fUST/lending_fUST_20260109
["ID","MTS","AMOUNT","RATE_DAILY","PERIOD"]
[401090972,1767917445783,-151.0,0.00027,7]
[401090973,1767917445792,-151.0,0.00027,7]
[401090974,1767917445801,-189.075092,0.00027,7]
[401090975,1767917445812,-189.075092,0.00027,7]
[401090976,1767917445822,-189.075092,0.00027,7]
[401090977,1767917445832,-189.075092,0.00027,7]
[401090978,1767917445842,-310.474251,0.00027,7]
[401090979,1767917445851,-310.474251,0.00027,7]
[401090980,1767917445861,-310.474251,0.00027,7]
[401090981,1767917445871,-978.076784,0.00027,7]
[401090982,1767917445879,-310.474251,0.00027,7]
[401090983,1767917445889,-151.0,0.00027,7]
[401090984,1767917445898,-978.076784,0.00027,7]
[401090985,1767917445907,-151.0,0.00027,7]
[401090986,1767917445917,-978.076784,0.00027,7]
[401090987,1767917445927,-978.076784,0.00027,7]
[401090988,1767917445936,-296.920538,0.00027,7]
[401090989,1767917445945,-296.920538,0.00027,7]
[401090990,1767917445955,-296.920538,0.00027,7]
[401090991,1767917445964,-296.920538,0.00027,7]
[401090992,1767917445974,-151.0,0.00027068,7]
[401090993,1767917445984,-151.0,0.00027068,7]
[401090994,1767917445996,-151.0,0.00027068,7]
[401090995,1767917446006,-151.0,0.00027068,7]
[401090996,1767917446015,-151.0,0.00027068,7]
[401090997,1767917446024,-151.0,0.00027068,7]
[401090998,1767917446035,-151.0,0.00027068,7]
[401090999,1767917446044,-151.0,0.00027068,7]
[401091000,1767917446054,-1738.86621809,0.00027068,2]
[401091001,1767917446065,-3912.4489907,0.00027068,2]
[401091002,1767917446075,-6955.46487235,0.00027068,2]
[401091003,1767917446084,-819.492272,0.00027068,2]
[401091004,1767917446093,-3277.96908801,0.00027068,2]
[401091005,1767917446103,-7375.43044802,0.00027068,2]
[401091006,1767917446112,-16648.99,0.000271,2]
[401091007,1767917446121,-1549.0,0.00027129,2]
[401091008,1767917446130,-193.8322625,0.00027151,2]
[401091009,1767917446139,-600.9658097,0.00027151,2]
[401091010,1767917446148,-155.7312107,0.00027151,2]
[401091011,1767917446158,-387.4247744,0.00027151,2]
[401091012,1767917446167,-600.9658097,0.00027151,2]
[401091013,1767917446176,-153.0,0.00027151,2]
[401091018,1767917446299,-153.0,0.00027151,2]
[401091019,1767917446313,-1201.6224616,0.00027151,2]
[401091020,1767917446322,-153.0,0.00027151,2]
[401091021,1767917446332,-900.0,0.00027183,7]
[401091022,1767917446342,-448.0,0.00027185,7]
[401091023,1767917446351,-814.35,0.000272,14]
[401091025,1767917446360,-900.0,0.00027252,7]
[401091027,1767917446369,-172.18674375,0.0002727,2]
[401091029,1767917446379,-3591.0,0.0002727,2]
[401091031,1767917446388,-230.27,0.00027305,2]
[401091032,1767917446397,-160.0,0.00027309,3]
[401091033,1767917446408,-900.0,0.0002731,7]
[401091034,1767917446418,-1549.0,0.00027358,2]
[401091035,1767917446427,-221.765393,0.00027368,7]
[401091036,1767917446436,-151.0,0.00027368,7]
[401091037,1767917446446,-1803.46,0.00027397,2]
[401091038,1767917446455,-223.85462441,0.00027397,2]
[401091039,1767917446464,-650.0,0.00027397,5]
[401091040,1767917446474,-300.0,0.00027397,2]
[401091041,1767917446483,-300.0,0.00027397,2]
[401091042,1767917446492,-300.0,0.00027397,2]
[401091043,1767917446502,-300.0,0.00027397,2]
[401091044,1767917446511,-300.0,0.00027397,2]
[401091045,1767917446520,-500.0,0.00027397,5]
[401091046,1767917446530,-157.24522628,0.00027397,5]
[401091047,1767917446540,-300.0,0.00027397,5]
[401091048,1767917446551,-514.97749556,0.00027397,5]
[401091049,1767917446561,-162.88,0.000274,7]
[401091050,1767917446570,-163.0,0.000274,7]
[401091051,1767917446580,-264.224,0.00027418,7]
[401091052,1767917446591,-264.224,0.00027418,7]
[401091053,1767917446600,-264.224,0.00027418,7]
[401091054,1767917446610,-264.224,0.00027418,7]
[401091055,1767917446619,-151.0,0.00027418,7]
[401091056,1767917446629,-151.0,0.00027418,7]
[401091057,1767917446638,-151.0,0.00027418,7]
[401091058,1767917446647,-153.716458,0.00027418,7]
[401091059,1767917446657,-151.0,0.00027418,7]
[401091060,1767917446666,-151.0,0.00027418,7]
[401091061,1767917446675,-151.0,0.00027418,7]
[401091062,1767917446685,-151.0,0.00027418,7]
[401091063,1767917446694,-151.0,0.00027418,7]
[401091064,1767917446703,-151.0,0.00027418,7]
[401091065,1767917446713,-151.0,0.00027418,7]
[401091066,1767917446722,-151.0,0.00027418,7]
[401091067,1767917446731,-217.6,0.00027441,2]
[401091068,1767917446741,-554.95289818,0.00027451,14]
[401091069,1767917446751,-553.64373807,0.00027461,2]
[401091070,1767917446761,-2674.60743027,0.00027461,2]
[401091071,1767917446771,-151.0,0.00027461,2]
[401091072,1767917446780,-34692.55458483,0.00027461,2]
[401091073,1767917446789,-362.0,0.00027491,2]
[401091074,1767917446798,-45941.24138367,0.000275,2]
[401091075,1767917446808,-7708.90119015,0.000275,2]
[401091076,1767917446817,-900.0,0.00027566,7]
[401091077,1767917446826,-900.0,0.00027598,7]
[401091078,1767917446836,-8758.563294,0.00027642,2]
[401091079,1767917446845,-250.092,0.00027721,2]
[401091080,1767917446855,-231.199,0.00027721,2]
[401091081,1767917446864,-220.922,0.00027721,2]
[401091082,1767917446874,-241.59,0.00027721,2]
[401091083,1767917446884,-232.266,0.00027721,2]
[401091084,1767917446893,-261.063,0.00027721,2]
[401091085,1767917446903,-628.0,0.00027721,2]
[401091086,1767917446912,-2146.0,0.00027721,2]
[401091087,1767917446921,-1366.0,0.00027721,2]
[401091088,1767917446930,-417.0,0.00027721,2]
[401091089,1767917446940,-714.0,0.00027721,2]
[401091090,1767917446949,-417.0,0.00027721,2]
[401091092,1767917446959,-195.337,0.00027721,2]
[401091094,1767917446969,-662.05141041,0.00027739,2]
[401091095,1767917446978,-1000.0,0.00027777,5]
[401091096,1767917446990,-1041.66666667,0.000278,30]
[401091097,1767917446999,-7225.4312202,0.00027809,2]
[401091098,1767917447008,-362.0,0.00027829,7]
[401091099,1767917447018,-790.46133503,0.00027872,7]
[401091100,1767917447030,-900.0,0.00027942,7]
[401091101,1767917447039,-1000.0,0.00027945,5]
[401091102,1767917447049,-750.0,0.00027945,5]
[401091103,1767917447058,-600.0,0.00027945,5]
[401091104,1767917447069,-250.0,0.00027945,5]
[401091105,1767917447078,-250.0,0.00027945,5]
[401091106,1767917447088,-900.0,0.00027989,7]
[401091107,1767917447098,-554.95289818,0.00027994,15]
[401091108,1767917447107,-151.0,0.00028,7]
[401091109,1767917447116,-151.0,0.00028,7]
[401091110,1767917447126,-151.0,0.00028,7]
[401091111,1767917447135,-334.5472959,0.00028007,2]
[401091112,1767917447144,-3683.85552,0.00028009,7]
[401091113,1767917447153,-3683.85552,0.00028009,7]
[401091114,1767917447163,-3683.85552,0.00028009,7]
[401091115,1767917447172,-151.0,0.00028009,7]
[401091116,1767917447181,-3683.85552,0.00028009,7]
[401091117,1767917447191,-151.0,0.00028009,7]
[401091118,1767917447200,-465.027669,0.00028009,7]
[401091119,1767917447209,-465.027669,0.00028009,7]
[401091120,1767917447219,-465.027669,0.00028009,7]
[401091121,1767917447228,-465.027669,0.00028009,7]
[401091122,1767917447237,-151.0,0.00028009,7]
[401091123,1767917447246,-625.10994,0.00028009,7]
[401091124,1767917447255,-625.10994,0.00028009,7]
[401091125,1767917447264,-625.10994,0.00028009,7]
[401091126,1767917447273,-625.10994,0.00028009,7]
[401091127,1767917447282,-151.0,0.00028009,7]
[401091128,1767917447291,-218.447401,0.00028009,7]
[401091129,1767917447300,-218.447401,0.00028009,7]
[401091130,1767917447309,-218.447401,0.00028009,7]
[401091131,1767917447319,-218.447404,0.00028009,7]
[401091132,1767917447329,-151.0,0.00028009,7]
[401091133,1767917447338,-242.879987,0.00028009,7]
[401091134,1767917447347,-189.075092,0.00028009,7]
[401091135,1767917447356,-189.075092,0.00028009,7]
[401091136,1767917447366,-189.075092,0.00028009,7]
[401091137,1767917447376,-189.075086,0.00028009,7]
[401091138,1767917447385,-310.474251,0.00028009,7]
[401091139,1767917447395,-310.474251,0.00028009,7]
[401091140,1767917447404,-310.474251,0.00028009,7]
[401091141,1767917447413,-310.474246,0.00028009,7]
[401091142,1767917447422,-978.076784,0.00028009,7]
[401091143,1767917447431,-151.0,0.00028009,7]
[401091144,1767917447440,-978.076784,0.00028009,7]
[401091145,1767917447449,-151.0,0.00028009,7]
[401091146,1767917447458,-978.076784,0.00028009,7]
[401091147,1767917447467,-978.076776,0.00028009,7]
[401091148,1767917447476,-296.920538,0.00028009,7]
[401091149,1767917447485,-296.920538,0.00028009,7]
[401091150,1767917447495,-296.920538,0.00028009,7]
[401091151,1767917447504,-296.920535,0.00028009,7]
[401091152,1767917447515,-151.0,0.00028009,7]
[401091153,1767917447524,-151.0,0.00028009,7]
[401091154,1767917447533,-151.0,0.00028009,7]
[401091155,1767917447543,-574.12855637,0.00028009,2]
[401091156,1767917447552,-2773.56790519,0.00028009,2]
[401091157,1767917447562,-151.0,0.00028009,2]
[401091158,1767917447572,-245.890009,0.00028073,7]
[401091159,1767917447581,-151.0,0.00028073,7]
[401091160,1767917447592,-151.0,0.00028073,7]
[401091161,1767917447601,-449.63,0.000281,2]
[401091162,1767917447610,-362.0,0.00028137,2]
[401091163,1767917447620,-264.224,0.00028149,7]
[401091164,1767917447630,-264.224,0.00028149,7]
[401091165,1767917447640,-264.224,0.00028149,7]
[401091166,1767917447650,-264.224,0.00028149,7]
[401091167,1767917447659,-151.0,0.00028149,7]
[401091168,1767917447669,-151.0,0.00028149,7]
[401091169,1767917447678,-151.0,0.00028149,7]
[401091170,1767917447688,-900.0,0.0002816,7]
[401091171,1767917447697,-362.0,0.00028181,2]
[401091172,1767917447707,-16648.99,0.000282,2]
[401091173,1767917447716,-151.0,0.000282,7]
[401091174,1767917447726,-151.0,0.000282,7]
[401091175,1767917447736,-151.0,0.000282,7]
[401091176,1767917447746,-151.0,0.000282,7]
[401091177,1767917447756,-151.0,0.000282,7]
[401091178,1767917447766,-200.38257444,0.00028229,7]
[401091179,1767917447775,-163.0,0.00028229,7]
[401091180,1767917447784,-204.62288337,0.00028229,7]
[401091181,1767917447795,-153.0,0.00028229,7]
[401091182,1767917447805,-153.0,0.00028229,7]
[401091183,1767917447815,-153.0,0.00028229,7]
[401091184,1767917447824,-153.0,0.00028229,7]
[401091185,1767917447834,-297.01652411,0.00028229,7]
[401091186,1767917447844,-166.0,0.00028229,7]
[401091187,1767917447855,-151.0,0.00028229,7]
[401091188,1767917447865,-151.0,0.00028229,7]
[401091189,1767917447874,-151.0,0.00028229,7]
[401091190,1767917447884,-151.0,0.00028229,7]
[401091191,1767917447894,-151.0,0.00028229,7]
[401091192,1767917447903,-1537.5009227,0.00028289,2]
[401091193,1767917447912,-1681.0,0.00028315,2]
[401091194,1767917447922,-1681.0,0.00028322,7]
[401091195,1767917447931,-800.0,0.00028329,2]
[401091196,1767917447940,-800.0,0.00028349,2]
[401091197,1767917447949,-600.9658097,0.00028385,30]
[401091198,1767917447959,-814.35,0.000284,14]
[401091199,1767917447969,-7218.14870842,0.000284,2]
[401091200,1767917447978,-5016.95882183,0.0002849,2]
[401091201,1767917447991,-850.0,0.00028493,5]
[401091202,1767917448000,-1345.80901206,0.00028493,5]
[401091203,1767917448009,-900.0,0.00028493,5]
[401091204,1767917448019,-350.0,0.00028493,5]
[401091205,1767917448030,-350.0,0.00028493,5]
[401091206,1767917448039,-200.0,0.00028499,10]
[401091207,1767917448049,-243645.18593279,0.000285,7]
[401091208,1767917448058,-54575.02715063,0.000285,7]
[401091209,1767917448069,-3000.0,0.000285,2]
[401091210,1767917448079,-264.224,0.000285,7]
[401091211,1767917448088,-264.224,0.000285,7]
[401091212,1767917448099,-264.224,0.000285,7]
[401091213,1767917448109,-264.224,0.000285,7]
[401091214,1767917448118,-151.0,0.000285,7]
[401091215,1767917448127,-151.0,0.000285,7]
[401091216,1767917448136,-151.0,0.000285,7]
[401091217,1767917448146,-151.0,0.000285,7]
[401091218,1767917448155,-151.0,0.000285,7]
[401091219,1767917448164,-151.0,0.000285,7]
[401091220,1767917448173,-151.0,0.000285,7]
[401091221,1767917448183,-151.0,0.000285,7]
[401091222,1767917448192,-3683.85552,0.000285,7]
[401091223,1767917448201,-3683.85552,0.000285,7]
[401091224,1767917448211,-3683.85552,0.000285,7]
[401091225,1767917448220,-151.0,0.000285,7]
[401091226,1767917448229,-3683.855526,0.000285,7]
[401091227,1767917448238,-151.0,0.000285,7]
[401091228,1767917448249,-465.027669,0.000285,7]
[401091229,1767917448259,-465.027669,0.000285,7]
[401091230,1767917448268,-465.027669,0.000285,7]
[401091231,1767917448278,-465.027665,0.000285,7]
[401091232,1767917448287,-151.0,0.000285,7]
[401091233,1767917448296,-625.10994,0.000285,7]
[401091234,1767917448305,-625.10994,0.000285,7]
[401091235,1767917448315,-625.10994,0.000285,7]
[401091236,1767917448324,-625.109943,0.000285,7]
[401091237,1767917448334,-151.0,0.000285,7]
[401091238,1767917448344,-1064.121297,0.000285,2]
[401091239,1767917448353,-250.0,0.000285,7]
[401091240,1767917448362,-250.4,0.000285,7]
[401091241,1767917448372,-151.0,0.000285,7]
[401091242,1767917448382,-151.0,0.000285,7]
[401091243,1767917448392,-151.0,0.000285,7]
[401091244,1767917448402,-151.0,0.000285,7]
[401091245,1767917448412,-151.0,0.000285,7]
[401091246,1767917448422,-151.0,0.000285,7]
[401091247,1767917448431,-151.0,0.000285,7]
[401091248,1767917448444,-205.995794,0.000285,7]
[401091249,1767917448454,-3000.0,0.0002851,2]
[401091250,1767917448463,-362.0,0.00028511,7]
[401091251,1767917448473,-362.0,0.00028519,2]
[401091252,1767917448482,-3000.0,0.0002852,2]
[401091253,1767917448491,-3000.0,0.0002853,2]
[401091254,1767917448502,-554.95289818,0.00028537,17]
[401091255,1767917448514,-3000.0,0.0002854,2]
[401091256,1767917448524,-1300.0,0.00028546,14]
[401091257,1767917448535,-3000.0,0.0002855,2]
[401091258,1767917448546,-595.37131296,0.00028557,2]
[401091259,1767917448556,-2876.18991768,0.00028557,2]
[401091260,1767917448566,-294.36088308,0.00028557,2]
[401091261,1767917448575,-800.0,0.00028558,2]
[401091262,1767917448584,-3000.0,0.0002856,2]
[401091263,1767917448594,-3000.0,0.0002857,2]
[401091264,1767917448604,-800.0,0.00028573,2]
[401091265,1767917448614,-3000.0,0.0002858,2]
[401091266,1767917448624,-800.0,0.00028584,2]
[401091267,1767917448634,-3000.0,0.0002859,2]
[401091268,1767917448644,-217.6,0.00028597,3]
[401091269,1767917448654,-3000.0,0.000286,2]
[401091270,1767917448665,-3000.0,0.0002861,2]
[401091271,1767917448675,-3000.0,0.0002862,2]
[401091272,1767917448712,-1681.0,0.00028624,2]
[401091273,1767917448722,-800.0,0.00028628,2]
[401091274,1767917448731,-3000.0,0.0002863,2]
[401091275,1767917448741,-281.28077948,0.00028635,7]
[401091276,1767917448750,-3000.0,0.0002864,2]
[401091277,1767917448759,-881.0,0.00028644,10]
[401091278,1767917448768,-303.0,0.00028644,10]
[401091279,1767917448778,-405.0,0.00028644,10]
[401091280,1767917448787,-160.0,0.00028645,4]
[401091281,1767917448796,-800.0,0.00028648,2]
[401091282,1767917448806,-177.7430696,0.0002865,2]
[401091283,1767917448816,-1612.2116253,0.0002865,2]
[401091284,1767917448826,-3000.0,0.0002865,2]
[401091285,1767917448835,-3000.0,0.0002866,2]
[401091286,1767917448844,-229.1395677,0.00028663,30]
[401091287,1767917448854,-3000.0,0.0002867,2]
[401091288,1767917448863,-3000.0,0.0002868,2]
[401091289,1767917448872,-3000.0,0.0002869,2]
[401091290,1767917448882,-800.0,0.00028691,2]
[401091291,1767917448891,-3000.0,0.000287,2]
[401091292,1767917448900,-151.0,0.000287,7]
[401091293,1767917448910,-204.768677,0.000287,7]
[401091294,1767917448924,-153.60505,0.000287,7]
[401091295,1767917448945,-3000.0,0.0002871,2]
[401091296,1767917448956,-3000.0,0.0002872,2]
[401091297,1767917448965,-3000.0,0.0002873,2]
[401091298,1767917448974,-3000.0,0.0002874,2]
[401091299,1767917448984,-3000.0,0.0002875,2]
[401091300,1767917448996,-200.0,0.00028759,10]
[401091301,1767917449006,-4000.0,0.0002876,5]
[401091302,1767917449015,-19137.07550739,0.0002876,2]
[401091303,1767917449024,-3000.0,0.0002876,2]
[401091304,1767917449034,-151.0,0.0002876,7]
[401091305,1767917449043,-151.0,0.0002876,7]
[401091306,1767917449052,-1803.46,0.00028767,4]
[401091307,1767917449062,-170.598297,0.00028767,60]
[401091308,1767917449072,-3000.0,0.0002877,2]
[401091309,1767917449081,-3000.0,0.0002878,2]
[401091310,1767917449090,-2566.24195812,0.0002878,2]
[401091311,1767917449099,-3000.0,0.0002879,2]
[401091312,1767917449108,-200.0,0.00028799,10]
[401091313,1767917449117,-205525.00255123,0.000288,2]
[401091314,1767917449245,-1674.99025897,0.000288,2]
[401091315,1767917449445,-2428.29582292,0.00017272,2]
[401091316,1767917449454,-1905.69776608,0.00017716,2]
[401091319,1767917699644,200.0,0.00030136,120]
[401091320,1767917709911,200.0,0.00030136,120]
[401091321,1767917718829,210.0,0.00030136,120]
[401091322,1767917932469,155.36,8.874e-05,2]
[401091323,1767918291568,2235.82716601,0.00030137,120]
[401091361,1767918631903,-552.0,9.407e-05,2]
[401091363,1767918631913,-310.9552076,9.415e-05,2]
[401091365,1767918631922,-164.7616441,0.00010546,2]
[401091367,1767918631932,-156.99,0.00010757,2]
[401091369,1767918631942,-151.0,0.00011,2]
[401091370,1767918631951,-366.92714496,0.00011415,2]
[401091372,1767918631960,-535.97794014,0.0001151,2]
[401091374,1767918631970,-500.0,0.00011884,2]
[401091376,1767918631979,-500.0,0.00011884,2]
[401091378,1767918631988,-500.0,0.00011884,2]
[401091380,1767918631996,-500.0,0.00011884,2]
[401091382,1767918632006,-500.0,0.00011884,2]
[401091384,1767918632015,-500.0,0.00011884,2]
[401091386,1767918632024,-500.0,0.00011884,2]
[401091389,1767918632033,-500.0,0.00011884,2]
[401091392,1767918632042,-500.0,0.00011884,2]
[401091395,1767918632051,-500.0,0.00011884,2]
[401091398,1767918632061,-500.0,0.00011884,2]
[401091400,1767918632070,-500.0,0.00011884,2]
[401091404,1767918632080,-500.0,0.00011884,2]
[401091407,1767918632089,-442.98430113,0.00011884,2]
[401091409,1767918632098,-500.0,0.00011884,2]
[401091411,1767918632108,-500.0,0.00011884,2]
[401091413,1767918632117,-500.0,0.00011884,2]
[401091415,1767918632126,-500.0,0.00011884,2]
[401091416,1767918632135,-500.0,0.00011884,2]
[401091418,1767918632145,-500.0,0.00011884,2]
[401091420,1767918632154,-500.0,0.00011884,2]
[401091422,1767918632164,-500.0,0.00011884,2]
[401091424,1767918632173,-500.0,0.00011884,2]
[401091426,1767918632182,-500.0,0.00011884,2]
[401091428,1767918632191,-500.0,0.00011884,2]
[401091429,1767918632201,-500.0,0.00011884,2]
[401091430,1767918632210,-500.0,0.00011884,2]
[401091431,1767918632219,-500.0,0.00011884,2]
[401091432,1767918632228,-500.0,0.00011884,2]
[401091433,1767918632237,-500.0,0.00011884,2]
[401091434,1767918632247,-500.0,0.00011884,2]
[401091435,1767918632256,-574.12883167,0.00011884,2]
[401091436,1767918632265,-500.0,0.00011884,2]
[401091437,1767918632275,-500.0,0.00011884,2]
[401091438,1767918632285,-500.0,0.00011884,2]
[401091439,1767918632295,-500.0,0.00011884,2]
[401091440,1767918632304,-500.0,0.00011884,2]
[401091441,1767918632315,-500.0,0.00011884,2]
[401091442,1767918632324,-365.14727664,0.00011884,2]
[401091443,1767918632333,-500.0,0.00011884,2]
[401091444,1767918632342,-500.73236026,0.00011884,2]
[401091445,1767918632351,-500.0,0.00011884,2]
[401091446,1767918632361,-500.0,0.00011884,2]
[401091447,1767918632370,-500.0,0.00011884,2]
[401091448,1767918632380,-500.0,0.00011884,2]
[401091449,1767918632389,-500.0,0.00011884,2]
[401091450,1767918632399,-500.0,0.00011884,2]
[401091451,1767918632408,-500.0,0.00011884,2]
[401091452,1767918632418,-500.0,0.00011884,2]
[401091453,1767918632437,-500.0,0.00011884,2]
[401091454,1767918632447,-500.0,0.00011884,2]
[401091455,1767918632456,-500.0,0.00011884,2]
[401091456,1767918632465,-500.0,0.00011884,2]
[401091457,1767918632475,-500.0,0.00011884,2]
[401091458,1767918632485,-500.0,0.00011884,2]
[401091459,1767918632494,-500.0,0.00011884,2]
[401091460,1767918632503,-500.0,0.00011884,2]
[401091461,1767918632514,-500.0,0.00011884,2]
[401091462,1767918632523,-500.0,0.00011884,2]
[401091463,1767918632532,-500.0,0.00011884,2]
[401091464,1767918632542,-500.0,0.00011884,2]
[401091465,1767918632551,-500.0,0.00011884,2]
[401091466,1767918632560,-500.0,0.00011884,2]
[401091467,1767918632569,-500.0,0.00011884,2]
[401091468,1767918632578,-500.0,0.00011884,2]
[401091469,1767918632587,-500.0,0.00011884,2]
[401091470,1767918632596,-500.0,0.00011884,2]
[401091471,1767918632605,-500.0,0.00011884,2]
[401091472,1767918632614,-500.0,0.00011884,2]
[401091473,1767918632622,-620.65552808,0.00011884,2]
[401091474,1767918632631,-500.0,0.00011884,2]
[401091475,1767918632640,-600.0,0.00011884,2]
[401091476,1767918632649,-500.0,0.00011884,2]
[401091477,1767918632658,-500.0,0.00011884,2]
[401091478,1767918632667,-500.0,0.00011884,2]
[401091479,1767918632676,-500.0,0.00011884,2]
[401091480,1767918632685,-500.0,0.00011884,2]
[401091481,1767918632694,-300.0,0.00012129,2]
[401091482,1767918632704,-300.0,0.00012129,2]
[401091483,1767918632713,-300.0,0.00012129,2]
[401091484,1767918632721,-300.0,0.00012129,2]
[401091485,1767918632730,-300.0,0.00012129,2]
[401091486,1767918632739,-300.0,0.00012129,2]
[401091487,1767918632748,-300.0,0.00012129,2]
[401091488,1767918632757,-300.0,0.00012129,2]
[401091489,1767918632766,-300.0,0.00012129,2]
[401091490,1767918632775,-300.0,0.00012129,2]
[401091491,1767918632784,-300.0,0.00012129,2]
[401091492,1767918632792,-300.0,0.00012129,2]
[401091493,1767918632801,-300.0,0.00012129,2]
[401091494,1767918632810,-300.0,0.00012129,2]
[401091495,1767918632819,-300.0,0.00012129,2]
[401091496,1767918632828,-600.0,0.00012129,2]
[401091497,1767918632837,-151.0,0.000128,2]
[401091498,1767918632846,-151.0,0.000132,2]
[401091499,1767918632854,-354.0529105,0.00013273,2]
[401091500,1767918632863,-500.0,0.00013273,2]
[401091501,1767918632872,-500.0,0.00013273,2]
[401091502,1767918632881,-500.0,0.00013273,2]
[401091503,1767918632889,-500.0,0.00013273,2]
[401091504,1767918632898,-500.0,0.00013273,2]
[401091505,1767918632908,-500.0,0.00013273,2]
[401091506,1767918632917,-500.0,0.00013273,2]
[401091507,1767918632926,-500.0,0.00013273,2]
[401091508,1767918632935,-630.69173533,0.00013273,2]
[401091509,1767918632944,-500.0,0.00013273,2]
[401091510,1767918632954,-500.0,0.00013273,2]
[401091511,1767918632963,-500.0,0.00013273,2]
[401091512,1767918632972,-720.0,0.00013342,2]
[401091513,1767918632981,-422.89908233,0.00013415,2]
[401091514,1767918632991,-300.0,0.00013673,2]
[401091515,1767918633001,-159.90338543,0.00013699,2]
[401091516,1767918633010,-500.0,0.00013699,2]
[401091517,1767918633020,-500.0,0.00013699,2]
[401091518,1767918633029,-500.0,0.00013699,2]
[401091519,1767918633038,-500.0,0.00013699,2]
[401091520,1767918633048,-500.0,0.00013699,2]
[401091521,1767918633057,-500.0,0.00013699,2]
[401091522,1767918633067,-500.0,0.00013699,2]
[401091523,1767918633076,-500.0,0.00013699,2]
[401091524,1767918633086,-500.0,0.00013699,2]
[401091525,1767918633095,-304.24162733,0.00013699,2]
[401091526,1767918633105,-243.13183042,0.00013699,2]
[401091527,1767918633114,-500.0,0.00013699,2]
[401091528,1767918633124,-500.0,0.00013699,2]
[401091529,1767918633135,-500.0,0.00013699,2]
[401091530,1767918633144,-500.0,0.00013699,2]
[401091531,1767918633153,-159.84215086,0.00013699,2]
[401091532,1767918633162,-500.0,0.00013699,2]
[401091533,1767918633172,-220.41004887,0.00013699,2]
[401091534,1767918633181,-500.0,0.00013699,2]
[401091535,1767918633191,-500.0,0.00013699,2]
[401091536,1767918633200,-500.0,0.00013699,2]
[401091537,1767918633209,-525.286019,0.00013699,2]
[401091538,1767918633218,-500.0,0.00013699,2]
[401091539,1767918633228,-500.0,0.00013699,2]
[401091540,1767918633237,-500.0,0.00013699,2]
[401091541,1767918633246,-500.0,0.00013699,2]
[401091542,1767918633255,-500.0,0.00013699,2]
[401091543,1767918633265,-500.0,0.00013699,2]
[401091544,1767918633274,-160.31511176,0.00013699,2]
[401091545,1767918633283,-500.0,0.00013699,2]
[401091546,1767918633292,-500.0,0.00013699,2]
[401091547,1767918633302,-500.0,0.00013699,2]
[401091548,1767918633310,-500.0,0.00013699,2]
[401091549,1767918633320,-500.0,0.00013699,2]
[401091550,1767918633329,-500.0,0.00013699,2]
[401091551,1767918633338,-500.0,0.00013699,2]
[401091552,1767918633347,-500.0,0.00013699,2]
[401091553,1767918633356,-500.0,0.00013699,2]
[401091554,1767918633367,-500.0,0.00013699,2]
[401091555,1767918633376,-346.80702233,0.00013699,2]
[401091556,1767918633385,-165.20381649,0.00013699,2]